Cogmind - Beta 16 @@@ ROGUE MODE // 2025.11.09 @ 15:52:27 Player: bschuck Result: Destroyed by D-53 Grenadier with Mini Grenade Launcher Performance ------------- Evolutions (0) 0 Regions Visited (2) 400 Robots Destroyed (4) 20 Value Destroyed (162) 162 Prototype IDs (0) 0 Alien Tech Used (0) 0 Bonus (0) 0 TOTAL SCORE: 582 Bonus ------- None Cogmind --------- Core Integrity 0/250 Matter 275/300 Energy 70/100 System Corruption 6% Temperature Cool (12) Movement Core (450) Ox8 Location -10/Mines Parts ------- > --- POWER (1) -------- (None) > --- PROPULSION (2) --- (None) > --- UTILITY (2) ------ Large Storage Unit > --- WEAPON (2) ------- Particle Gun Grenade Launcher > --- INVENTORY (15) --- Ion Engine Light Nuclear Core Light Treads Light Treads Aluminum Leg EM Pulse Gun Medium Laser Medium Laser Rocket Launcher Peak State ------------ > --- POWER ------------ Ion Engine > --- PROPULSION ------- Aluminum Leg Aluminum Leg > --- UTILITY ---------- Small Storage Unit Sensor Array > --- WEAPON ----------- Medium Laser Assault Rifle > --- INVENTORY -------- Ion Engine Light Nuclear Core Light Treads Light Treads EM Pulse Gun Medium Laser Medium Laser Grenade Launcher [Rating: 8] Favorites ----------- Power Ion Engine Engine Ion Engine Propulsion Aluminum Leg Leg Aluminum Leg Utility Sensor Array Device Sensor Array Storage Large Storage Unit Weapon Assault Rifle Energy Gun Medium Laser Ballistic Gun Assault Rifle Launcher Grenade Launcher Build | -11 -10 -10 ------- Run | Yrd Mat Min Slots Evolved . | . . . Power . | . . . Propulsion . | . . . Utility . | . . . Weapon . | . . . Parts Attached 11 | 6 2 3 Power 1 | 1 . . Engine 1 | 1 . . Core . | . . . Reactor . | . . . Propulsion 3 | 2 . 1 Treads . | . . . Leg 3 | 2 . 1 Wheel . | . . . Hover . | . . . Flight . | . . . Utility 3 | 1 2 . Device 1 | . 1 . Storage 2 | 1 1 . Processor . | . . . Hackware . | . . . Protection . | . . . Artifact . | . . . Weapon 4 | 2 . 2 Energy Gun 2 | 1 . 1 Energy Cannon . | . . . Ballistic Gun 1 | 1 . . Ballistic Cannon . | . . . Launcher 1 | . . 1 Special Weapon . | . . . Impact Weapon . | . . . Slashing Weapon . | . . . Piercing Weapon . | . . . Special Melee Weapon . | . . . Unidentified Prototypes . | . . . Parts Lost 7 | . . 7 Power 1 | . . 1 Propulsion 3 | . . 3 Utility 1 | . . 1 Weapon 2 | . . 2 Highest Loss Streak 5 | . . 5 To Critical Strikes . | . . . Average Backups 7 | 3 5 9 Power 1 | 1 1 2 Propulsion 2 | 1 2 2 Utility . | . . . Weapon 4 | 1 2 5 Tool/Special . | . . . Unused Backups 9 | . . 9 Power 2 | . . 2 Propulsion 3 | . . 3 Utility . | . . . Weapon 4 | . . 4 Tool/Special . | . . . Average Slot Usage (%) 93 | . 91 94 Engine 13 | . 14 13 Leg 27 | . 28 26 Device 11 | . 6 13 Storage 14 | . 14 14 Energy Gun 11 | . 14 10 Ballistic Gun 13 | . 14 13 Peak Build Rating 8 | 6 8 8 Average Rating 7 | 4 6 7 On Entrance 4 | . 6 8 Avg Prop Armor Cover (%) . | . . . Naked Turns . | . . . Heaviest Build 30 | 14 30 30 Greatest Support 20 | 20 20 20 Greatest Overweight (x) 2 | . 1 2 Average Overweight (x) . | . . 1 Largest Inventory Capacity 15 | 8 15 15 Average Capacity 12 | 5 9 15 Most Carried 11 | 5 8 11 Average Carried 7 | 3 6 9 Final Capacity 15 | 8 15 15 Final Carried 9 | 4 8 9 Class Distribution -------------------- 100% | Mutant Dominant Class ---------------- Mutant | -10/Materials Mutant | -10/Mines Resources | -11 -10 -10 ----------- Run | Yrd Mat Min Matter Collected 341 | 107 189 45 Remotely . | . . . Salvage Created 188 | . 100 88 Parts 6 | . 3 3 Haulers Intercepted . | . . . Recyclers Shooed . | . . . Parts Field Recycled . | . . . Retrieved Matter . | . . . Parts Self-Destructed . | . . . Prevented . | . . . Parts Restored . | . . . Kills | -11 -10 -10 ------- Run | Yrd Mat Min Combat Hostiles Destroyed 4 | . 2 2 Guns 4 | . 2 2 Classes Destroyed 1 | . 1 . Grunt 4 | . 2 2 Best Kill Streak 2 | . 2 2 Combat Bots Only 2 | . 2 2 Max Kills in Single Turn 1 | . 1 1 Gunslinging . | . . . Exploded . | . . . Melee . | . . . Uniques/NPCs Destroyed . | . . . Combat | -11 -10 -10 -------- Run | Yrd Mat Min Hostile Shots Fired 59 | . 38 21 Missed 15 | . 12 3 Hits 44 | . 26 18 Melee 3 | . . 3 Projectile 41 | . 26 15 AOE 5 | . . 5 Damage Taken 837 | . 324 513 Core 264 | . 80 184 Absorbed by Shields . | . . . Core Remaining (%) 100 | 100 . . Volleys Fired 19 | . 12 7 Largest 2 | . 2 2 Hottest 95 | . 70 95 Shots Fired 36 | . 24 12 Gun 35 | . 24 11 Cannon . | . . . Launcher 1 | . . 1 Special . | . . . Kinetic 18 | . 12 6 Thermal 17 | . 12 5 Explosive 1 | . . 1 Electromagnetic . | . . . Robot Hit Streak 6 | . 4 6 Robot Miss Streak 5 | . 4 5 Penetration Max . | . . . Secondary Targets 1 | . 1 . Max Gunslinging Chain 1 | . 1 . Shots Hit Robots 21 | . 14 7 Core Hits 10 | . 5 5 Critical Kills . | . . . Critical Parts Destroyed . | . . . Critical Strikes . | . . . Melee Attacks . | . . . Impact . | . . . Slashing . | . . . Piercing . | . . . Sneak Attacks . | . . . Combat Hostiles . | . . . Follow-up Attacks . | . . . Damage Inflicted 323 | . 176 147 Guns 268 | . 176 92 Cannons . | . . . Explosions 55 | . . 55 Melee . | . . . Ramming . | . . . Kinetic 152 | . 89 63 Thermal 116 | . 87 29 Explosive 55 | . . 55 Electromagnetic . | . . . Impact . | . . . Slashing . | . . . Piercing . | . . . Highest Corruption 6 | . 2 6 Average Corruption 2 | . 2 2 Corruption Purged . | . . . Corruption Blocked . | . . . Effects 12 | . 2 10 Message Errors 3 | . . 3 Matter Fused 1 | . . 1 Heat Flow Errors 2 | . . 2 Energy Discharges 5 | . 2 3 Data Loss (major) 1 | . . 1 Overload Shots . | . . . Overflow Damage 10 | . . 10 Projectiles . | . . . Explosions 10 | . . 10 Melee . | . . . Knockbacks . | . . . Impact . | . . . Kinetic . | . . . Secondary . | . . . Self-Inflicted Damage 40 | . . 40 Shots 1 | . . 1 Rammed . | . . . Targets Rammed . | . . . Kicked . | . . . Crushed . | . . . Highest Temperature 265 | . 183 265 Average Temperature 118 | . 88 156 Received Heat Transfer 264 | . 186 78 Effects 2 | . . 2 Energy Bleed 2 | . . 2 Siege Activations . | . . . Martial Activations . | . . . Shielding Activations . | . . . Robots Disrupted . | . . . Combat Hostiles . | . . . Robots Corrupted . | . . . Combat Hostiles . | . . . Parts Fried . | . . . Impact Corruptions . | . . . Robots Melted . | . . . Combat Hostiles . | . . . Parts Melted . | . . . Heat Transferred 333 | . 259 74 Parts Sabotaged . | . . . Parts Stolen . | . . . Parts Stripped . | . . . Power Chain Reactions . | . . . Alert | -11 -10 -10 ------- Run | Yrd Mat Min Maximum Alert Level . | . . . Low Security (%) 100 | 100 100 100 Level 1 . | . . . Level 2 . | . . . Level 3 . | . . . Level 4 . | . . . Level 5 . | . . . High Security . | . . . Max Security . | . . . Peak Influence 40 | . 40 30 Initial . | . . . Average 3 | . 8 1 Influence Increases 101 | . 50 51 Destroy 0b10 Robot/C 80 | . 40 40 Destroy Leader 20 | . 10 10 Destroy Structure 1 | . . 1 Influence Decreases 100 | . 50 50 Time Decay 80 | . 50 30 Lost Part 20 | . . 20 Squads Dispatched . | . . . Investigation . | . . . Extermination . | . . . Reinforcement . | . . . Assault . | . . . Garrison . | . . . Intercept . | . . . Searches Triggered . | . . . Construction Impeded . | . . . Haulers Reinforced . | . . . Active Scanning Responses . | . . . Cargo Convoy Interrupts . | . . . Stealth | -11 -10 -10 --------- Run | Yrd Mat Min Distress Signals 2 | . 2 . Communications Jammed . | . . . Distress Signals . | . . . Times Spotted 18 | . 7 11 Peak Tracking Total 9 | . 4 9 Tactical Retreats . | . . . Traps | -11 -10 -10 ------- Run | Yrd Mat Min Traps Triggered 1 | . 1 . Indirectly . | . . . Trap Hack Attempts . | . . . Triggered . | . . . Disarmed . | . . . Reprogrammed . | . . . Reused . | . . . Traps Extracted . | . . . Installed . | . . . Triggered . | . . . Machines | -11 -10 -10 ---------- Run | Yrd Mat Min Machines Disabled . | . . . Max in Single Turn . | . . . Machines Repaired . | . . . Machines Dismantled . | . . . Machines Sabotaged . | . . . Overloaded Fab Kills . | . . . Hacking | -11 -10 -10 --------- Run | Yrd Mat Min Machines Accessed . | . . . Terminals . | . . . Fabricators . | . . . Repair Stations . | . . . Recycling Units . | . . . Scanalyzers . | . . . Garrison Access . | . . . Total Hacks . | . . . Successful . | . . . Failed . | . . . Catastrophic . | . . . Database Lockouts . | . . . Manual . | . . . Terminals . | . . . Fabricators . | . . . Repair Stations . | . . . Recycling Units . | . . . Scanalyzers . | . . . Garrison Access . | . . . Terminal Hacks . | . . . Fabricator Hacks . | . . . Repair Station Hacks . | . . . Recycling Unit Hacks . | . . . Scanalyzer . | . . . Garrison Access Hacks . | . . . Unauthorized Hacks . | . . . Terminals . | . . . Fabricators . | . . . Repair Stations . | . . . Recycling Units . | . . . Scanalyzers . | . . . Garrison Access . | . . . Data Cores Recovered . | . . . Used . | . . . Hacking Detections . | . . . Full Trace Events . | . . . Feedback Events . | . . . Feedback Blocked . | . . . Robot Schematics Acquired . | . . . Robots Built . | . . . Authchips . | . . . Time . | . . . Total Robot Build Rating . | . . . Part Schematics Acquired . | . . . Parts Built . | . . . Authchips . | . . . Time . | . . . Total Part Build Rating . | . . . Part Studies Acquired . | . . . Parts Repaired . | . . . Time . | . . . Parts Recycled . | . . . Recycled Matter . | . . . Retrieved Matter . | . . . Retrieved Components . | . . . Parts Scanalyzed . | . . . Part Schematics Acquired . | . . . Parts Damaged . | . . . Bothacking | -11 -10 -10 ------------ Run | Yrd Mat Min Used RIF Installer . | . . . Robots Hacked . | . . . Non-combat . | . . . Combat . | . . . Robot Hacks Applied . | . . . Relay Couplers Released . | . . . Fabnet Peak Effective % . | . . . Robots Rewired . | . . . Allies Hacked . | . . . Hacks Repelled . | . . . Allies | -11 -10 -10 -------- Run | Yrd Mat Min Total Allies . | . . . Largest Group . | . . . Highest-Rated Group . | . . . Highest-Rated Ally . | . . . Total Orders . | . . . Ally Attacks . | . . . Total Damage . | . . . Kills . | . . . Allies Corrupted . | . . . Allies Melted . | . . . Intel | -11 -10 -10 ------- Run | Yrd Mat Min Active Infowar (turns) 629 | . 104 525 Sensors 629 | . 104 525 Robot Analysis Total . | . . . Derelict Logs Recovered 1 | . . 1 Drone Launches . | . . . Drone Recoveries . | . . . Exploration | -11 -10 -10 ------------- Run | Yrd Mat Min Turns Passed 831 | 60 242 529 Spaces Moved 456 | 43 150 263 Core 9 | 9 . . Treads . | . . . Legs 447 | 34 150 263 Wheels . | . . . Hover . | . . . Flight . | . . . Fastest Speed 50 | 50 120 190 Average Speed 164 | 105 133 191 Slowest Speed 260 | 120 190 260 Overloaded Moves . | . . . Propulsion Burnouts . | . . . Robots Hopped . | . . . Potential Cave-ins . | . . . Cave-ins Triggered . | . . . Exploration Rate (%) 26 | 3 33 42 Regions Visited 2 Branch Regions 1 Pre-discovered Areas . | . . . Known Exits Taken . | . . . Unknown Exits Taken 2 | 1 1 . Scrap Searched 1 | . . 1 Spaces Dug . | . . . Terrain Destroyed 3 | . . 3 Melee . | . . . Projectile . | . . . AOE 3 | . . 3 Terrain Rammed . | . . . Walls Destroyed . | . . . Machines Disabled . | . . . Actions | -11 -10 -10 --------- Run | Yrd Mat Min Total 503 | 57 169 277 Wait . | . . . Move 454 | 42 149 263 Hop . | . . . Pick Up 18 | 9 5 4 Fast Attach 1 | 1 . . Attach 9 | 5 1 3 Detach . | . . . Swap 1 | . 1 . Drop 1 | . 1 . Fire 19 | . 12 7 Melee . | . . . Ram . | . . . Kick . | . . . Crush . | . . . Escape Stasis . | . . . Rewire . | . . . Trap . | . . . Miscellaneous . | . . . Route ------- -11/Scrapyard -10/Materials -10/Mines History --------- Turn | Location | Event 35 | -11/Scrapyard | Discovered new exit (range 15) 61 | -11/Scrapyard | Entered Materials 239 | -10/Materials | Discovered new exit (range 9) 303 | -10/Materials | Entered Mines 308 | -10/Mines | Build established: Mutant 322 | -10/Mines | Received a Rocket Launcher from a helpful Derelict 409 | -10/Mines | Learned Materials terminal intel 789 | -10/Mines | Assembled infested the area 794 | -10/Mines | Assisted by a Guerilla fighting off Assembled 830 | -10/Mines | Core integrity fell below 50% 832 | -10/Mines | Core integrity fell below 20% 832 | -10/Mines | Destroyed by D-53 Grenadier with Mini Grenade Launcher Last Messages --------------- come on!" Ion Engine destroyed. Knocked back. C-45 Heavy ARC bursts open, deploying its payload. D-53 Grenadier unfolds itself. U-05 Engineer destroyed. Seismic Survey Station disabled. as-23137 sneak attacks. Aluminum Leg destroyed. Assault Rifle destroyed. Sensor Array destroyed. System corrupted by crushing effect (+4). as-94768 destroyed. as-82801 destroyed. as-24768 destroyed. as-93634 destroyed. U-05 Engineer destroyed. Destroyed Com. Wheel. R-06 Scavenger destroyed. Map ----- +----------------------------------------------------+ | ?????????????????????????????????????????????????? | | ?????????????????????????????????????????????????? | | ?????????????????????????????????????????????????? | | ?????????????????????????###?????????????????????? | | ??????????????????????#### ##???????????????????? | | ?????????????????????## ###?????????????????? | | ?????????????????????# ##????????????????? | | ?????????????????????# #####????????????? | | ?????????????????????## ##???????????? | | ??????????????????????######## #???????????? | | ???????#?????????????????????#### #???????????? | | ??????## ???????????????????????## ##?####??????? | | ?????## ??????????????????????## ##?## ##?????? | | ?????# ???????#??????????????# #### #### | | ?????# ?????# ??????????????# % | | ?????# #??## ?????????????## ! ] ###??? | | ??????# ### ?????????????## ###### #????? | | ???????? ??????????#### #????## #????? | | ?????????# ?????????## ##?????# ##???? | | ??????????# ?????????# #??????# #???? | | ???????????# #??????##?# #?????## ##??? | | ????????????# ####### # # #?????# ##?? | | ????????????# ! # ##?????# #?? | | ????????????# =% ##?????## #?? | | ????????????# a% a #??????# #?? | | ???????????# @% ##??????# #?? | | ?????? a = d ##???????# """ #?? | | ????? !% d #????????## """ #?? | | ????? #### = % #?????????# """ #?? | | ???? #???###### ## # #?????????# #?? | | ????# ?????????##?##### #?????????## ##?? | | ????## ?????????????????# #??????????# ##?? | | ?????## #?????????????????# #??????????# ### | | ??????###??????????????????# #??????????# | | ???????????????????????????# #??????????## | | ?????????????????????????### #???????????# ### | | ????????????????????????## ############# #?## | | ????????????????????????# #??# | | ????????????????????????# #??# | | ????????????????????????## ###############??# | | ???????????????############ ##???????????????# | | ???????????????# % ##??????????????# | | ???????????????# ########## ##?????????????# | | ???????????????# #???????# #?????????????## | | ???????????????# #???????# #??????????????# | | ???????????????# #???????## ##??????????????# | | ???????????????# #????????##### ##???????????????? | | ???????????????# #????????????# #????????????????? | | ??????????????? ???????????## #????????????????? | | ??????????????? ?????????### ###??????????????? | +----------------------------------------------------+ Best States ------------- Heat Dissipation 25 Energy Generation 10 Energy Capacity 250 Matter Stores 300 Matter Capacity 300 Sight Range 16 Robot Scan Range 14 Terrain Scan Density 10 Evasion (%) 55 Item Schematics ----------------- None Robot Schematics ------------------ None Fabricated ------------ Nothing Repaired ---------- Nothing Studied --------- None Alien Tech Used ----------------- None Achievements -------------- None Challenges ------------ None Game ------ Seed AssaultInsulationWheel Manual? 0 Play Time 00:10:18 Cumulative 27.0 hours Start 2025.11.09 @ 15:43:02 End 2025.11.09 @ 15:52:27 Sessions 1 Manual Loads 0 Difficulty Rogue Special Mode None Game No. 41 Rogue 30 Adventurer 0 Explorer 11 Win Type - Total 0 Types 0/0/0/0/0/0/0/0/0/0 Lore% 5 Gallery% 23 Achievement% 13 Wizard Run 0 Options --------- Layout 1 ASCII 0 Keyboard 0 Movement Mouse Keybinds 0 Fullscreen 1 Font 32/SmallcapsGlow Map View 50x35 Zoom Use 0% Tactical HUD 0 Map Filters NONE Filters NONE Steam 1 RUN: 28070cff-04e7-4f29-b079-c51df2f4338b